fUSD/lending_fUSD_20240201
["ID","MTS","AMOUNT","RATE_DAILY","PERIOD"]
[313137288,1706795486125,-532.35,0.00049863,30]
[313137289,1706795486134,-1038.98,0.00049863,30]
[313137290,1706795486144,-500.0,0.00049863,30]
[313137291,1706795486154,-630.44,0.00049863,30]
[313137292,1706795486163,-7491.3,0.00049863,30]
[313137293,1706795486173,-649.07,0.00049863,30]
[313137294,1706795486182,-1993.07,0.00049863,30]
[313137295,1706795486191,-5037.04,0.00049863,30]
[313137296,1706795486201,-664.31,0.00049863,30]
[313137297,1706795486211,-855.46,0.00049863,30]
[313137298,1706795486221,-1589.64,0.00049863,30]
[313137299,1706795486231,-1069.77,0.00049863,30]
[313137300,1706795486241,-731.97,0.00049863,30]
[313137301,1706795486250,-552.56,0.00049863,30]
[313137302,1706795486263,-586.13,0.00049863,30]
[313137303,1706795486273,-611.33340299,0.00049863,30]
[313137304,1706795486282,-775.07,0.00049863,30]
[313137305,1706795486291,-842.52,0.00049863,30]
[313137306,1706795486301,-623.0,0.00049863,5]
[313137307,1706795486310,-1135.03,0.00049863,30]
[313137308,1706795486319,-500.0,0.00049863,30]
[313137309,1706795486329,-539.73,0.00049863,30]
[313137310,1706795486339,-159.13632679,0.00049869,30]
[313137311,1706795486348,-470.61279061,0.0004987,30]
[313137312,1706795486357,-150.88124633,0.00049874,30]
[313137313,1706795486366,-175.15138576,0.00049879,30]
[313137314,1706795486376,-250.0,0.00049883,28]
[313137315,1706795486386,-333.33845262,0.00049884,30]
[313137316,1706795486395,-500.0,0.00049888,14]
[313137317,1706795486404,-1203.0,0.0004989,2]
[313137318,1706795486413,-5250.0,0.000499,12]
[313137319,1706795486422,-5250.0,0.000499,13]
[313137320,1706795486432,-5250.0,0.000499,30]
[313137321,1706795486441,-5250.0,0.000499,31]
[313137322,1706795486449,-5250.0,0.000499,11]
[313137323,1706795486458,-198.97,0.000499,120]
[313137324,1706795486468,-50037.6,0.000499,30]
[313137325,1706795486481,-652891.51395152,0.000499,7]
[313137326,1706795486685,-244.945809,0.00041096,14]
[313137327,1706795486695,-500.0,0.00043835,4]
[313137328,1706795486704,-2144.05088322,0.000499,7]
[313137329,1706795486716,-63363.70911342,0.000499,7]
[313137330,1706795486906,-244.945809,0.00041096,14]
[313137331,1706795486916,-244.945809,0.00041096,14]
[313137332,1706795486925,-244.945809,0.00041096,14]
[313137333,1706795486934,-244.945809,0.00041096,14]
[313137334,1706795486944,-500.0,0.00044383,4]
[313137335,1706795486953,-500.0,0.00044931,4]
[313137336,1706795486962,-75.45319204,0.00045479,4]
[313137337,1706795486978,-424.54680796,0.00045479,4]
[313137338,1706795486987,-500.0,0.00046027,4]
[313137339,1706795486996,-500.0,0.00046575,4]
[313137340,1706795487006,-500.0,0.00047123,4]
[313137341,1706795487016,-366.71106456,0.00049315,120]
[313137342,1706795487037,-749.63383072,0.000348,2]
[313137343,1706795487046,-244.945809,0.00041096,14]
[313137344,1706795487055,-13.94883533,0.00049315,120]
[313137345,1706795487067,-73.57430907,0.00049315,120]
[313137346,1706795487076,-657.15745888,0.000499,7]
[313137347,1706795487102,-500.0,0.00047671,4]
[313137348,1706795487111,-500.0,0.000499,7]
[313137349,1706795487318,-264.64758707,0.000304,2]
[313137350,1706795487330,-683.30887846,0.000304,2]
[313137351,1706795487343,-52.04353447,0.000304,2]
[313137352,1706795487352,-215.28420849,0.00033389,4]
[313137353,1706795487361,-681.65034824,0.00034059,2]
[313137354,1706795487370,-49.7600386,0.00034899,5]
[313137355,1706795487396,-495.2399614,0.00034899,5]
[313137356,1706795487405,-1000.0,0.000359,2]
[313137357,1706795487414,-244.945809,0.00041096,14]
[313137358,1706795487423,-244.945809,0.00041096,14]
[313137359,1706795487433,-125.4684206,0.00041096,14]
[313137373,1706796074319,346.41,0.00022129,2]
[313137374,1706796117283,162.57,0.00020138,2]
[313137377,1706796319102,-768.8565787,0.00022767,2]
[313137378,1706796319123,-495.03511247,0.00022768,2]
[313137379,1706796319132,-155.53582091,0.00022883,2]
[313137380,1706796319142,-118.28564532,0.00022896,2]
[313137381,1706796319160,-64.2868426,0.00022896,2]
[313137382,1706796326566,7789.36696294,0.00020138,2]
[313137383,1706796368422,360.31303706,0.00020138,2]
[313137384,1706796378638,-150.0,0.00022896,2]
[313137385,1706796378669,-150.0,0.00022896,2]
[313137386,1706796378754,-15631.1434213,0.00022897,2]
[313137388,1706796466734,1155.28171818,0.00020635,2]
[313137389,1706796470031,163.79,0.00021959,2]
[313137390,1706796482713,223.63265163,0.00020696,2]
[313137391,1706796501708,350.49,0.00021971,2]
[313137392,1706796512137,500.0,0.00022022,2]
[313137394,1706796528626,203.36,0.00021954,2]
[313137395,1706796606479,156.39,0.00022018,2]
[313137418,1706796631619,-199.7852525,0.00022649,2]
[313137419,1706796631629,-488.60408939,0.00022649,2]
[313137420,1706796631638,-544.47280916,0.00022649,2]
[313137421,1706796631648,-197.53896978,0.0002265,2]
[313137422,1706796631658,-216.22962887,0.0002265,2]
[313137423,1706796631667,-419.32669066,0.0002265,2]
[313137424,1706796631677,-155.0,0.0002265,2]
[313137425,1706796631686,-1375.46820516,0.0002265,2]
[313137426,1706796631695,-2326.42575358,0.00022651,2]
[313137427,1706796631705,-1063.97373236,0.00022651,2]
[313137428,1706796631713,-1259.83989749,0.00022651,2]
[313137429,1706796631723,-286.19980726,0.00022651,2]
[313137430,1706796631733,-2910.00148881,0.00022652,2]
[313137431,1706796631742,-155.0,0.00022652,2]
[313137432,1706796631751,-970.70503894,0.00022652,2]
[313137433,1706796631761,-245.62414662,0.00022652,2]
[313137434,1706796631770,-1754.64374147,0.00022653,2]
[313137435,1706796631779,-943.24199569,0.00022653,2]
[313137436,1706796631789,-6457.69392305,0.00022654,2]
[313137437,1706796631798,-1048.47652281,0.00022654,2]
[313137438,1706796631808,-731.22927714,0.00022655,2]
[313137439,1706796631822,-432.2274599,0.00022655,2]
[313137440,1706796631840,-1191.5852551,0.00022655,2]
[313137441,1706796631850,-155.0,0.00022656,2]
[313137442,1706796631860,-266.25668129,0.00022656,2]
[313137443,1706796631869,-286.58798442,0.00022657,2]
[313137444,1706796631878,-4500.57991331,0.00022783,2]
[313137445,1706796631887,-583.80255041,0.00022784,2]
[313137446,1706796631897,-768.8565787,0.00022785,2]
[313137447,1706796631906,-525.29809218,0.00022785,2]
[313137448,1706796631916,-850.07908362,0.00022786,2]
[313137449,1706796631926,-4649.82965175,0.00022787,2]
[313137450,1706796631935,-540.5095,0.00022788,2]
[313137451,1706796631945,-90159.04456193,0.00022789,2]
[313137452,1706796633853,-162.24967733,0.00022648,2]
[313137453,1706796633862,-10306.55032267,0.0002265,2]
[313137454,1706796633876,-7382.376725,0.0002265,2]
[313137455,1706796633890,-2242.77160239,0.0002265,2]
[313137456,1706796633904,-3710.71199057,0.0002265,2]
[313137463,1706796634492,2521.75,0.00021893,2]
[313137465,1706796638446,-879.15736777,0.0002265,2]
[313137466,1706796638458,-2797.34709911,0.0002265,2]
[313137467,1706796638508,-2673.31573222,0.0002265,2]
[313137468,1706796638520,-1050.00000162,0.0002265,2]
[313137469,1706796638564,-588.0,0.0002265,2]
[313137470,1706796638577,-2225.55961246,0.0002265,2]
[313137471,1706796638586,-2291.13254668,0.00022789,2]
[313137472,1706796638597,-440.7,0.00022789,2]
[313137473,1706796638609,-7139.49937052,0.00022789,2]
[313137474,1706796638632,-588.55930921,0.00022789,2]
[313137475,1706796638687,-526.49720276,0.00022789,2]
[313137476,1706796638749,-460.30514835,0.00022789,2]
[313137477,1706796638761,-910.7364,0.00022789,2]
[313137478,1706796638774,-27224.15983764,0.00022789,2]
[313137479,1706796638783,-164.74705448,0.00022789,2]
[313137480,1706796638793,-2567.12181009,0.00022789,2]
[313137481,1706796638803,-384.4123,0.00022789,2]
[313137482,1706796638812,-353.5366,0.00022789,2]
[313137483,1706796638825,-164.74705447,0.0002279,2]
[313137484,1706796638834,-164.74705447,0.0002279,2]
[313137485,1706796638844,-845.12,0.0002279,2]
[313137486,1706796638853,-164.74705447,0.00022791,2]
[313137487,1706796638864,-177.97356469,0.00022791,2]
[313137489,1706796638874,-4039.37139986,0.00022791,2]
[313137490,1706796638883,-164.74705447,0.00022791,2]
[313137492,1706796638892,-621.58328466,0.00022791,2]
[313137495,1706796638902,-1047.549696,0.00022791,2]
[313137496,1706796638913,-698.37071285,0.00022791,2]
[313137497,1706796638922,-249.49045219,0.00022791,2]
[313137498,1706796638932,-500.0,0.00022792,2]
[313137499,1706796638942,-500.0,0.00022792,2]
[313137500,1706796638951,-500.0,0.00022792,2]
[313137501,1706796638960,-498.898,0.00022792,2]
[313137502,1706796638970,-500.0,0.00022792,2]
[313137503,1706796638979,-500.0,0.00022792,2]
[313137505,1706796638990,-500.0,0.00022792,2]
[313137506,1706796639000,-486.11216089,0.00022792,2]
[313137507,1706796639009,-1091023.9551059,0.00022793,3]
[313137508,1706796639019,-1059965.06752196,0.00022793,2]
[313137509,1706796639029,-4682.5512,0.00022794,2]
[313137510,1706796639038,-2567.12181005,0.00022815,2]
[313137511,1706796639048,-2567.12181005,0.00022841,2]
[313137512,1706796639057,-177.97356467,0.00022846,2]
[313137513,1706796639066,-4039.37139986,0.00022846,2]
[313137514,1706796639077,-621.58328464,0.00022846,2]
[313137515,1706796639087,-1047.549696,0.00022846,2]
[313137516,1706796639096,-698.37071283,0.00022846,2]
[313137517,1706796639106,-249.49045219,0.00022846,2]
[313137518,1706796639115,-2567.12181005,0.00022867,2]
[313137519,1706796639124,-247.91063068,0.00022879,2]
[313137520,1706796639133,-247.91063068,0.0002288,2]
[313137521,1706796639143,-155.0,0.00022886,2]
[313137522,1706796639153,-157.53276897,0.00022886,2]
[313137523,1706796639163,-233.3484501,0.00022886,2]
[313137524,1706796639172,-156.9025853,0.00022886,2]
[313137525,1706796639182,-353.17177551,0.00022886,2]
[313137526,1706796639192,-157.49371138,0.00022886,2]
[313137527,1706796639202,-282.21611749,0.00022886,2]
[313137528,1706796639211,-156.62849969,0.00022886,2]
[313137529,1706796639220,-383.76753435,0.00022886,2]
[313137530,1706796639230,-967.43524386,0.00022886,2]
[313137531,1706796639239,-246.91049352,0.00022886,2]
[313137532,1706796639249,-164.30232967,0.00022886,2]
[313137533,1706796639259,-155.43158686,0.00022886,2]
[313137534,1706796639268,-155.0744322,0.00022886,2]
[313137535,1706796639278,-155.0,0.00022886,2]
[313137536,1706796639287,-259.70462571,0.00022886,2]
[313137537,1706796639296,-155.78698594,0.00022886,2]
[313137538,1706796639306,-156.73401959,0.00022886,2]
[313137539,1706796639315,-228.3602233,0.00022886,2]
[313137540,1706796639325,-504.03826774,0.00022886,2]
[313137541,1706796639334,-157.73561839,0.00022886,2]
[313137542,1706796639343,-155.44390996,0.00022886,2]
[313137543,1706796639353,-332.79028713,0.00022886,2]
[313137544,1706796639363,-3333.04721489,0.00022886,2]
[313137545,1706796639372,-410.45065952,0.00022886,2]
[313137546,1706796639381,-831.61927221,0.00022886,2]
[313137547,1706796639391,-351.44940533,0.00022886,2]
[313137548,1706796639400,-314.20154029,0.00022886,2]
[313137549,1706796639410,-155.0,0.00022886,2]
[313137550,1706796639419,-228.83453251,0.00022886,2]
[313137551,1706796639428,-603.33877856,0.00022886,2]
[313137552,1706796639437,-3234.95429051,0.00022886,2]
[313137553,1706796639447,-155.46065038,0.00022886,2]
[313137554,1706796639456,-524.26850226,0.00022886,2]
[313137555,1706796639466,-500.0,0.00022886,2]
[313137556,1706796639475,-426.96015302,0.00022886,2]
[313137557,1706796639484,-4882.23832841,0.00022886,2]
[313137558,1706796639493,-241.07606728,0.00022886,2]
[313137559,1706796639502,-199.03575703,0.00022886,2]
[313137560,1706796639511,-1245.40466885,0.00022886,2]
[313137561,1706796639522,-155.0,0.00022886,2]
[313137562,1706796639533,-7232.61598302,0.00022886,2]
[313137563,1706796639543,-155.54125996,0.00022886,2]
[313137564,1706796639554,-1122.12658466,0.00022886,2]
[313137565,1706796639563,-155.67536418,0.00022886,2]
[313137566,1706796639574,-315.18305531,0.00022886,2]
[313137567,1706796639583,-481.02562885,0.00022886,2]
[313137568,1706796639593,-172.02741418,0.00022886,2]
[313137569,1706796639602,-269.95069429,0.00022886,2]
[313137570,1706796639611,-432.75226238,0.00022886,2]
[313137571,1706796639620,-201.26906544,0.00022886,2]
[313137572,1706796639630,-324.04339551,0.00022886,2]
[313137573,1706796639639,-157.86817586,0.00022886,2]
[313137574,1706796639649,-392.87874065,0.00022886,2]
[313137575,1706796639658,-294.02403229,0.00022886,2]
[313137576,1706796639667,-207.49720552,0.00022886,2]
[313137577,1706796639677,-357.11876471,0.00022889,10]
[313137578,1706796639686,-1856.59324209,0.0002289,2]
[313137579,1706796639696,-20251.92140554,0.00022891,2]
[313137580,1706796639705,-2567.12181005,0.00022894,2]
[313137581,1706796639714,-222.84629183,0.00022896,2]
[313137582,1706796639724,-3706.0245,0.00022898,2]
[313137583,1706796639733,-155.6627,0.00022898,2]
[313137584,1706796639743,-9760.7759,0.00022898,2]
[313137585,1706796639753,-170.01533238,0.000229,2]
[313137586,1706796639762,-433.66,0.000229,2]
[313137587,1706796639772,-153.92899581,0.000229,2]
[313137588,1706796639782,-5000.0,0.000229,2]
[313137589,1706796639792,-177.97356467,0.000229,2]
[313137590,1706796639801,-4039.37139986,0.000229,2]
[313137591,1706796639810,-621.58328464,0.000229,2]
[313137592,1706796639825,-1047.549696,0.000229,2]
[313137593,1706796639834,-698.37071283,0.000229,2]
[313137594,1706796639843,-249.49045219,0.000229,2]
[313137595,1706796639853,-167.46117237,0.00022928,2]
[313137596,1706796639862,-248.08555624,0.00022928,2]
[313137597,1706796639871,-156.65823984,0.00022928,2]
[313137598,1706796639880,-155.44901312,0.00022928,2]
[313137599,1706796639890,-255.11217212,0.00022928,2]
[313137600,1706796639900,-202.46606729,0.00022928,2]
[313137601,1706796639910,-2373.61204905,0.00022928,2]
[313137602,1706796639920,-162.69912584,0.00022928,2]
[313137603,1706796639930,-156.06033092,0.00022928,2]
[313137604,1706796639939,-163.72705546,0.00022928,2]
[313137605,1706796639950,-164.59395117,0.00022928,2]
[313137606,1706796639961,-275.02799802,0.00022928,2]
[313137607,1706796639970,-396.53188178,0.00022928,2]
[313137608,1706796639980,-155.96386265,0.00022928,2]
[313137609,1706796639989,-202.51790807,0.00022928,2]
[313137610,1706796639998,-2639.68606581,0.00022928,2]
[313137611,1706796640007,-358.52425652,0.00022928,2]
[313137612,1706796640017,-3350.11903617,0.00022928,4]
[313137613,1706796640026,-155.0,0.00022928,2]
[313137615,1706796640035,-268.05123994,0.00022928,2]
[313137616,1706796640044,-269.58359667,0.00022928,2]
[313137617,1706796640054,-159.38545617,0.00022928,2]
[313137618,1706796640063,-165.86369279,0.00022928,2]
[313137619,1706796640072,-303.23549832,0.00022928,2]
[313137620,1706796640081,-155.0,0.00022928,2]
[313137621,1706796640090,-160.88165229,0.00022928,2]
[313137622,1706796640100,-191.36685827,0.00022928,2]
[313137623,1706796640109,-207.37342243,0.00022928,2]
[313137624,1706796640119,-18376.29046026,0.00022928,2]
[313137625,1706796640128,-205.43932251,0.00022928,2]
[313137626,1706796640137,-268.80974085,0.00022928,2]
[313137627,1706796640146,-182.36804262,0.00022928,2]
[313137628,1706796640156,-155.25152899,0.00022928,2]
[313137629,1706796640165,-262.22168542,0.00022928,2]
[313137630,1706796640174,-278.70037906,0.00022928,2]
[313137631,1706796640183,-160.80738862,0.00022928,2]
[313137632,1706796640192,-238.51006061,0.00022929,2]
[313137633,1706796640202,-155.3699649,0.00022929,2]
[313137634,1706796640211,-400.0,0.00022929,2]
[313137635,1706796640221,-14733.11368095,0.00022931,2]
[313137636,1706796640230,-223.73818206,0.00022954,6]
[313137637,1706796640239,-223.73818206,0.00022972,6]
[313137638,1706796640249,-215.44803519,0.00022973,2]
[313137639,1706796640258,-247.91063068,0.0002299,2]
[313137640,1706796640267,-496.77130862,0.00022996,2]
[313137641,1706796640277,-155.0,0.00022997,2]
[313137642,1706796640286,-285.81614181,0.00022997,2]
[313137643,1706796640295,-2214.95155014,0.00022997,2]
[313137644,1706796640305,-156.16813554,0.00022997,2]
[313137645,1706796640314,-177.94121261,0.00022997,2]
[313137646,1706796640324,-156.6053493,0.00022997,2]
[313137647,1706796640334,-221.66172776,0.00022997,2]
[313137648,1706796640343,-2060.66703918,0.00022997,2]
[313137649,1706796640352,-296.08247219,0.00022997,2]
[313137650,1706796640362,-264.52968327,0.00022997,2]
[313137651,1706796640371,-304.10598474,0.00022997,2]
[313137652,1706796640380,-171.7455595,0.00022997,2]
[313137653,1706796640389,-2135.19370594,0.00022997,2]
[313137654,1706796640398,-2479.08580125,0.00022997,2]
[313137655,1706796640407,-4635.5485652,0.00022998,2]
[313137656,1706796640416,-5198.70632642,0.00022998,2]
[313137657,1706796640426,-195.67489377,0.00022998,2]
[313137658,1706796640435,-155.0,0.00022998,2]
[313137659,1706796640444,-2145.70782558,0.00022998,2]
[313137660,1706796640453,-502.41371894,0.00022998,2]
[313137661,1706796640462,-359.90801273,0.00022999,2]
[313137662,1706796640471,-3948.57940206,0.00022999,2]
[313137663,1706796640480,-500.0,0.00022999,2]
[313137664,1706796640489,-500.0,0.00022999,2]
[313137665,1706796640498,-386.8296787,0.00022999,2]
[313137666,1706796640507,-500.0,0.00022999,2]
[313137667,1706796640516,-404.38392886,0.00022999,2]
[313137668,1706796640526,-407.04648153,0.00022999,2]
[313137669,1706796640535,-500.0,0.00022999,2]
[313137670,1706796640545,-500.0,0.00022999,2]
[313137671,1706796640555,-500.0,0.00022999,2]
[313137672,1706796640565,-500.0,0.00022999,2]
[313137673,1706796640575,-500.0,0.00022999,2]
[313137674,1706796640585,-500.0,0.00022999,2]
[313137675,1706796640594,-321.24127104,0.00022999,2]
[313137676,1706796640603,-500.0,0.00022999,2]
[313137677,1706796640613,-500.0,0.00022999,2]
[313137678,1706796640622,-223.88676418,0.00022999,2]
[313137679,1706796640632,-500.0,0.00022999,2]
[313137680,1706796640641,-500.0,0.00022999,2]
[313137681,1706796640651,-500.0,0.00022999,2]
[313137682,1706796640661,-350.0,0.00022999,2]
[313137683,1706796640670,-350.0,0.00022999,2]
[313137684,1706796640679,-350.0,0.00022999,2]
[313137685,1706796640688,-350.0,0.00022999,2]
[313137686,1706796640698,-350.0,0.00022999,2]
[313137687,1706796640707,-356.07519407,0.00022999,2]
[313137688,1706796640717,-350.0,0.00022999,2]
[313137689,1706796640726,-350.0,0.00022999,2]
[313137690,1706796640735,-350.0,0.00022999,2]
[313137691,1706796640744,-371.72876075,0.00022999,2]
[313137692,1706796640753,-350.0,0.00022999,2]
[313137693,1706796640763,-350.0,0.00022999,2]
[313137694,1706796640772,-392.19981966,0.00022999,2]
[313137695,1706796640781,-350.0,0.00022999,2]
[313137696,1706796640791,-473.32749873,0.00022999,2]
[313137697,1706796640801,-260.27474086,0.00022999,2]
[313137698,1706796640812,-500.0,0.00022999,2]
[313137699,1706796640825,-325.83203179,0.00022999,2]
[313137700,1706796640834,-350.0,0.00022999,2]
[313137701,1706796640843,-304.59710362,0.00022999,2]
[313137702,1706796641000,-161.81185022,0.00022999,2]
[313137703,1706796641011,-178.09683961,0.00022999,2]
[313137704,1706796641021,-217.64619136,0.00022999,2]
[313137705,1706796641030,-227.58903719,0.00022999,2]
[313137706,1706796641039,-341.06135645,0.00022999,10]
[313137707,1706796641048,-341.06135645,0.00022999,10]
[313137708,1706796641058,-500.0,0.00022999,2]
[313137709,1706796641067,-260.27474086,0.00022999,2]
[313137710,1706796641077,-325.83203179,0.00022999,2]
[313137711,1706796641087,-500.0,0.00022999,2]
[313137712,1706796641097,-260.27474086,0.00022999,2]
[313137713,1706796641106,-465.46117598,0.00022999,2]
[313137714,1706796641115,-325.83203179,0.00022999,2]
[313137715,1706796641124,-500.0,0.00022999,2]
[313137716,1706796641134,-350.0,0.00022999,2]
[313137717,1706796641143,-260.27474085,0.00022999,2]
[313137718,1706796641152,-184.96259737,0.00022999,2]
[313137719,1706796641161,-350.0,0.00022999,2]
[313137720,1706796641171,-500.0,0.00022999,2]
[313137721,1706796641180,-260.27474086,0.00022999,2]
[313137722,1706796641190,-350.0,0.00022999,2]
[313137723,1706796641200,-325.83203179,0.00022999,2]
[313137724,1706796641209,-350.0,0.00022999,2]
[313137725,1706796641219,-355.48877921,0.00022999,2]
[313137726,1706796641228,-350.0,0.00022999,2]
[313137727,1706796641238,-350.0,0.00022999,2]
[313137728,1706796641247,-350.0,0.00022999,2]
[313137729,1706796641256,-500.0,0.00022999,2]
[313137730,1706796641265,-260.27474086,0.00022999,2]
[313137731,1706796641276,-325.83203179,0.00022999,2]
[313137732,1706796641286,-350.0,0.00022999,2]
[313137733,1706796641295,-367.61818888,0.00022999,2]
[313137734,1706796641305,-350.0,0.00022999,2]
[313137735,1706796641315,-589.21005917,0.00022999,2]
[313137736,1706796641326,-500.0,0.00022999,2]
[313137737,1706796641335,-260.27474086,0.00022999,2]
[313137738,1706796641345,-325.83203179,0.00022999,2]
[313137739,1706796641354,-350.0,0.00022999,2]
[313137740,1706796641363,-350.0,0.00022999,2]
[313137741,1706796641372,-350.0,0.00022999,2]
[313137742,1706796641382,-500.0,0.00022999,2]
[313137743,1706796641391,-500.0,0.00022999,2]
[313137744,1706796641401,-500.0,0.00022999,2]
[313137745,1706796641410,-500.0,0.00022999,2]
[313137746,1706796641419,-220.54948171,0.00022999,2]
[313137747,1706796641430,-445.77051217,0.00022999,2]
[313137748,1706796641439,-500.0,0.00022999,2]
[313137749,1706796641448,-550.0,0.00022999,2]
[313137750,1706796641458,-261.52392364,0.00022999,2]
[313137751,1706796641467,-500.0,0.00022999,2]
[313137752,1706796641476,-500.0,0.00022999,2]
[313137753,1706796641486,-500.0,0.00022999,2]
[313137754,1706796641495,-284.19132302,0.00022999,2]
[313137755,1706796641504,-500.0,0.00022999,2]
[313137756,1706796641514,-200.0,0.00022999,2]
[313137757,1706796641523,-354.39107011,0.00022999,2]
[313137758,1706796641532,-500.0,0.00022999,2]
[313137759,1706796641542,-350.0,0.00022999,2]
[313137760,1706796641551,-276.88844867,0.00022999,2]
[313137761,1706796641560,-500.0,0.00022999,2]
[313137762,1706796641569,-500.0,0.00022999,2]
[313137763,1706796641579,-500.0,0.00022999,2]
[313137764,1706796641588,-500.0,0.00022999,2]
[313137765,1706796641597,-425.41002951,0.00022999,2]
[313137766,1706796641606,-500.0,0.00022999,2]
[313137767,1706796641615,-500.0,0.00022999,2]
[313137768,1706796641624,-500.0,0.00022999,2]
[313137769,1706796641633,-528.74684427,0.00022999,2]
[313137770,1706796641642,-500.0,0.00022999,2]
[313137771,1706796641650,-500.0,0.00022999,2]
[313137772,1706796641660,-500.0,0.00022999,2]
[313137773,1706796641669,-500.0,0.00022999,2]
[313137774,1706796641679,-500.0,0.00022999,2]
[313137775,1706796641688,-500.0,0.00022999,2]
[313137776,1706796641697,-500.0,0.00022999,2]
[313137777,1706796641706,-500.0,0.00022999,2]
[313137778,1706796641716,-500.0,0.00022999,2]
[313137779,1706796641724,-500.0,0.00022999,2]
[313137780,1706796641734,-602.35055314,0.00022999,2]
[313137781,1706796641743,-500.0,0.00022999,2]
[313137782,1706796641752,-500.0,0.00022999,2]
[313137783,1706796641761,-500.0,0.00022999,2]
[313137784,1706796641770,-500.0,0.00022999,2]
[313137785,1706796641779,-500.0,0.00022999,2]
[313137786,1706796641788,-250.0,0.00022999,2]
[313137787,1706796641797,-350.0,0.00022999,2]
[313137788,1706796641806,-500.0,0.00022999,2]
[313137789,1706796641817,-497.88548354,0.00022999,2]
[313137790,1706796641827,-500.0,0.00022999,2]
[313137791,1706796641835,-200.0,0.00022999,2]
[313137792,1706796641844,-558.67527882,0.00022999,2]
[313137793,1706796641854,-554.88394551,0.00022999,2]
[313137794,1706796641863,-554.88394551,0.00022999,2]
[313137795,1706796641873,-554.88394551,0.00022999,2]
[313137796,1706796641882,-554.88394551,0.00022999,2]
[313137797,1706796641891,-500.0,0.00022999,2]
[313137798,1706796641900,-554.88394551,0.00022999,2]
[313137799,1706796641910,-500.0,0.00022999,2]
[313137800,1706796641919,-554.88394551,0.00022999,2]
[313137801,1706796641928,-554.88394551,0.00022999,2]
[313137802,1706796641937,-500.0,0.00022999,2]
[313137803,1706796641947,-554.88394551,0.00022999,2]
[313137804,1706796641956,-554.88394551,0.00022999,2]
[313137805,1706796641967,-450.0,0.00022999,2]
[313137806,1706796641977,-554.88394551,0.00022999,2]
[313137807,1706796641986,-500.0,0.00022999,2]
[313137808,1706796641995,-554.88394551,0.00022999,2]
[313137809,1706796642005,-554.88394551,0.00022999,2]
[313137810,1706796642014,-500.0,0.00022999,2]
[313137811,1706796642024,-500.0,0.00022999,2]
[313137812,1706796642033,-500.0,0.00022999,2]
[313137813,1706796642042,-600.0,0.00022999,2]
[313137814,1706796642052,-500.0,0.00022999,2]
[313137815,1706796642061,-250.51782697,0.00022999,2]
[313137816,1706796642071,-500.0,0.00022999,2]
[313137817,1706796642081,-500.0,0.00022999,2]
[313137818,1706796642090,-400.0,0.00022999,2]
[313137819,1706796642099,-541.04450522,0.00022999,2]
[313137820,1706796642109,-500.0,0.00022999,2]
[313137821,1706796642118,-490.89150469,0.00022999,2]
[313137822,1706796642127,-199.48336114,0.00022999,2]
[313137823,1706796642137,-500.0,0.00022999,2]
[313137824,1706796642146,-500.0,0.00022999,2]
[313137825,1706796642155,-500.0,0.00022999,2]
[313137826,1706796642165,-500.0,0.00022999,2]
[313137827,1706796642174,-500.0,0.00022999,2]
[313137828,1706796642183,-500.0,0.00022999,2]
[313137829,1706796642192,-500.0,0.00022999,2]
[313137830,1706796642202,-500.0,0.00022999,2]
[313137831,1706796642211,-500.0,0.00022999,2]
[313137832,1706796642221,-500.0,0.00022999,2]
[313137833,1706796642230,-207.90284406,0.00022999,2]
[313137834,1706796642239,-500.0,0.00022999,2]
[313137835,1706796642249,-500.0,0.00022999,2]
[313137836,1706796642258,-500.0,0.00022999,2]
[313137837,1706796642268,-383.92078232,0.00022999,2]
[313137838,1706796642278,-150.0,0.00022999,2]
[313137839,1706796642287,-150.0,0.00022999,2]